bitfinex/quotes_SOLUSD_20240822
["timestamp","ask_amount","ask_price","bid_price","bid_amount"]
[1724306632613,15.3561,142.59,142.52,17.5411]
[1724306632790,33.0194,142.59,142.54,1.40289711]
[1724306633718,0.12549,142.58,142.52,17.5411]
[1724306634016,0.12549,142.58,142.53,1.4028949]
[1724306634317,0.12549,142.58,142.54,7.0151]
[1724306634524,0.12549,142.58,142.53,8.4187949]
[1724306635320,0.12549,142.58,142.53,7.0159]
[1724306635698,0.12549,142.58,142.54,1.40289347]
[1724306636323,0.12549,142.58,142.53,7.0159]
[1724306637313,0.12549,142.58,142.54,1.40289543]
[1724306637828,0.12549,142.58,142.54,8.41839543]
[1724306638033,26.0061,142.59,142.55,1.40286639]
[1724306638246,33.0193,142.59,142.54,7.0155]
[1724306639528,15.3561,142.59,142.55,8.41776692]
[1724306639725,13.38335484,142.6,142.55,8.41776692]
[1724306639922,0.12549,142.59,142.55,8.41776692]
[1724306640345,17.6626,142.6,142.55,8.41776692]
[1724306640650,7.8460663,142.61,142.56,7.0144]
[1724306640827,18.4960663,142.61,142.56,7.0144]
[1724306641942,7.8460663,142.61,142.56,7.0144]
[1724306642119,15.9960663,142.61,142.56,7.0144]
[1724306643820,10.77549,142.62,142.57,8.4163893]
[1724306644036,17.6614,142.63,142.58,8.41612035]
[1724306644827,10.65,142.61,142.57,7.014]
[1724306646750,10.65,142.61,142.58,7.0135]
[1724306646921,10.65,142.61,142.57,7.0139]
[1724306650643,17.6623,142.61,142.56,24.5503]
[1724306651242,10.65,142.61,142.57,7.014]
[1724306655132,45.62206484,142.66,142.56,17.5358]
[1724306655323,7.0109,142.64,142.59,7.0127]
[1724306655520,17.6609,142.64,142.6,1.40235188]
[1724306655863,7.0109,142.64,142.6,1.40235188]
[1724306656020,17.6609,142.64,142.6,1.40235188]
[1724306657022,17.6609,142.64,142.59,7.0127]
[1724306658040,7.0109,142.64,142.59,7.0127]
[1724306658231,17.6609,142.64,142.6,1.40231492]
[1724306658556,17.6609,142.64,142.59,7.0127]
[1724306661164,7.0109,142.64,142.59,7.0127]
[1724306661464,17.6609,142.64,142.6,1.40231355]
[1724306661628,17.6609,142.64,142.59,7.0127]
[1724306662136,17.6609,142.64,142.6,1.4023118]
[1724306662340,7.0109,142.64,142.6,1.4023118]
[1724306662730,17.6609,142.64,142.6,1.4023118]
[1724306663362,13.25516484,142.66,142.61,7.012]
[1724306663553,7.0093,142.67,142.62,8.41362436]
[1724306663768,17.6593,142.67,142.62,1.40212436]
[1724306664665,27.72926484,142.7,142.62,17.5285]
[1724306664867,17.659,142.68,142.63,1.40205084]
[1724306665162,10.65,142.66,142.62,24.5399]
[1724306665732,10.65,142.66,142.63,8.41297857]
[1724306665935,10.65,142.68,142.64,7.0105]
[1724306666272,0.12549,142.67,142.64,7.0105]
[1724306666568,0.12549,142.67,142.63,8.41297857]
[1724306667136,10.65,142.68,142.63,8.41297857]
[1724306667353,10.65,142.68,142.63,7.011]
[1724306667872,17.6587,142.68,142.63,7.011]
[1724306668043,10.65,142.66,142.63,7.011]
[1724306669561,10.65,142.66,142.62,24.54]
[1724306671849,10.65,142.66,142.63,7.011]
[1724306672055,0.12549,142.67,142.63,8.41297053]
[1724306672284,0.12549,142.67,142.63,7.011]
[1724306672454,0.12549,142.67,142.64,1.40187734]
[1724306672640,10.65,142.68,142.64,1.40187734]
[1724306672839,7.13379,142.69,142.64,1.40187734]
[1724306673153,10.77549,142.68,142.64,1.40187734]
[1724306674349,10.77549,142.68,142.64,8.41247734]
[1724306674544,10.65,142.68,142.65,1.40180872]
[1724306674746,28.26096484,142.7,142.65,1.40180872]
[1724306674951,6.24526484,142.7,142.66,7.0094]
[1724306675138,10.65,142.7,142.66,7.0094]
[1724306675339,10.65,142.7,142.65,8.41180872]
[1724306675644,10.65,142.68,142.64,24.5365]
[1724306676974,10.65,142.68,142.65,1.40185482]
[1724306677185,10.65,142.68,142.64,17.5259]
[1724306677343,10.65,142.68,142.65,7.0099]
[1724306677686,10.65,142.69,142.65,7.0099]
[1724306677972,6.24526484,142.72,142.65,7.0099]
[1724306678180,10.65,142.69,142.65,7.0099]
[1724306678382,52.13279,142.71,142.65,7.0099]
[1724306678580,10.65,142.69,142.65,7.0099]
[1724306680573,10.65,142.69,142.64,24.5363]
[1724306684756,7.0077,142.7,142.65,7.01]
[1724306685103,10.65,142.7,142.66,1.40177868]
[1724306685459,10.65,142.68,142.64,24.5365]
[1724306685890,10.65,142.68,142.62,6.5134]
[1724306686065,10.65,142.68,142.63,7.0111]
[1724306686863,10.65,142.68,142.64,7.0106]
[1724306689105,10.65,142.68,142.63,7.011]
[1724306689687,10.65,142.68,142.64,7.0106]
[1724306695700,10.65,142.68,142.62,31.0531]
[1724306695988,10.65,142.68,142.63,7.0107]
[1724306696809,10.65,142.68,142.64,7.0106]
[1724306697521,17.6578,142.7,142.65,7.0101]
[1724306697822,17.6578,142.7,142.66,1.40170623]
[1724306698316,10.65,142.7,142.66,1.40170623]
[1724306700096,52.13279,142.71,142.66,1.40170623]
[1724306700410,10.65,142.7,142.66,1.40170623]
[1724306702218,45.12549,142.71,142.66,1.40170623]
[1724306702395,10.77549,142.71,142.65,7.01]
[1724306702595,10.77549,142.71,142.64,24.5367]
[1724306702907,10.65,142.69,142.64,24.5367]
[1724306703492,10.65,142.69,142.64,17.5262]
[1724306703885,10.65,142.69,142.65,1.40176004]
[1724306706320,6.24526484,142.72,142.65,1.40176004]
[1724306706611,10.65,142.72,142.64,17.5262]
[1724306706930,10.65,142.72,142.65,1.5269295]
[1724306707216,10.65,142.72,142.65,1.4014395]
[1724306707592,10.65,142.72,142.65,8.4114395]
[1724306707792,10.65,142.72,142.65,7.01]
[1724306708091,10.65,142.72,142.66,1.40144792]
[1724306708294,10.65,142.73,142.67,8.41044838]
[1724306708607,7.8391663,142.75,142.68,8.40990095]
[1724306708789,10.65,142.74,142.69,7.0081]
[1724306709115,10.65,142.74,142.7,1.40121509]
[1724306709482,10.65,142.74,142.68,24.5297]
[1724306710102,10.65,142.74,142.69,8.40918585]
[1724306710411,10.65,142.74,142.69,1.40128585]
[1724306710598,10.65,142.74,142.69,8.40908585]
[1724306711591,0.8338663,142.75,142.7,7.0075]
[1724306711804,11.4838663,142.75,142.7,7.0075]
[1724306712409,11.4838663,142.75,142.69,7.008]
[1724306713717,11.4838663,142.75,142.7,1.401128]
[1724306713907,11.4838663,142.75,142.71,1.4011276]
[1724306714804,11.4838663,142.75,142.69,7.008]
[1724306715596,11.4838663,142.75,142.7,1.40112783]
[1724306715816,11.4838663,142.75,142.69,7.008]
[1724306716503,11.4838663,142.75,142.7,1.40116132]
[1724306716813,11.4838663,142.75,142.71,1.40115764]
[1724306717016,0.8338663,142.75,142.71,1.40115764]
[1724306717324,11.4838663,142.75,142.7,7.0076]
[1724306719122,11.4838663,142.75,142.71,1.40108313]
[1724306720527,11.4838663,142.75,142.69,7.008]
[1724306721031,11.4838663,142.75,142.7,1.40108745]
[1724306721222,11.4838663,142.75,142.71,1.40108546]
[1724306722131,11.4838663,142.75,142.7,1.40108368]
[1724306722335,11.4838663,142.75,142.71,1.40108484]
[1724306722817,11.4838663,142.75,142.72,1.40108397]
[1724306724130,11.4838663,142.75,142.7,1.40108793]
[1724306725129,11.4838663,142.75,142.69,7.008]
[1724306725633,11.4838663,142.75,142.7,1.4010908]
[1724306725835,11.4838663,142.75,142.71,1.40109079]
[1724306726031,11.4838663,142.75,142.69,7.008]
[1724306726739,18.4891663,142.75,142.68,24.5294]
[1724306727240,18.4891663,142.75,142.69,7.008]
[1724306727415,18.4891663,142.75,142.69,8.40924889]
[1724306727742,11.4838663,142.75,142.69,8.40924889]
[1724306727915,11.4838663,142.75,142.7,7.0076]
[1724306730515,11.4838663,142.75,142.71,1.40106433]
[1724306731951,11.4838663,142.75,142.7,7.0076]
[1724306732124,11.4838663,142.75,142.71,1.40106681]
[1724306732328,11.4838663,142.75,142.71,8.40816681]
[1724306732647,11.4838663,142.75,142.71,12.05106681]
[1724306732648,0.8338663,142.75,142.71,12.05106681]
[1724306732814,0.8338663,142.75,142.73,7.0061]
[1724306733016,0.8338663,142.75,142.74,1.40082378]
[1724306733248,0.8338663,142.75,142.72,7.0066]
[1724306733446,0.8338663,142.75,142.71,7.0071]
[1724306733652,0.8338663,142.75,142.7,24.5262]
[1724306733860,0.8338663,142.75,142.71,20.0]
[1724306734150,11.4838663,142.75,142.71,20.0]
[1724306734823,11.4838663,142.75,142.7,24.5262]
[1724306737258,11.4838663,142.75,142.7,17.5186]
[1724306737847,10.65,142.73,142.68,7.0086]
[1724306738033,10.65,142.73,142.69,20.0]
[1724306740755,10.65,142.73,142.68,20.0]
[1724306740956,10.65,142.71,142.64,17.5258]
[1724306741160,27.3038,142.71,142.64,24.536]
[1724306741453,10.65,142.7,142.65,7.0101]
[1724306741847,10.65,142.7,142.64,24.5363]
[1724306743258,10.65,142.7,142.65,20.0]
[1724306743555,10.65,142.7,142.66,1.40173364]
[1724306744754,16.6538,142.71,142.66,1.40173364]
[1724306744942,16.6538,142.71,142.66,8.41123364]
[1724306745967,16.6538,142.71,142.66,7.0095]
[1724306746260,16.6538,142.71,142.65,27.0101]
[1724306746569,16.6538,142.71,142.66,1.40149918]
[1724306747361,27.3038,142.71,142.66,1.40149918]
[1724306748061,16.6538,142.71,142.66,8.41089918]
[1724306748450,16.6538,142.71,142.66,7.0094]
[1724306750252,16.6538,142.71,142.67,1.40143895]
[1724306756275,16.6538,142.71,142.66,7.0094]
[1724306756478,16.6538,142.71,142.68,7.0086]
[1724306757053,16.6538,142.71,142.65,40.0]
[1724306757268,15.6438,142.74,142.67,7.009]
[1724306757467,10.65,142.73,142.67,7.009]
[1724306758256,10.65,142.73,142.66,7.0094]
[1724306758460,26.2938,142.71,142.67,20.0]
[1724306758663,26.2938,142.71,142.66,1.40172248]
[1724306759977,26.2938,142.71,142.65,1.40165604]
[1724306760145,26.2938,142.71,142.65,8.41175604]
[1724306760545,26.2938,142.71,142.66,20.0]
[1724306760949,10.65,142.69,142.63,7.011]
[1724306761151,10.65,142.69,142.62,24.5397]
[1724306762674,10.65,142.67,142.59,30.65]
[1724306762851,10.65,142.67,142.61,7.0117]
[1724306763276,27.1031,142.67,142.62,20.0]
[1724306763496,7.0106,142.64,142.57,20.0]
[1724306763661,10.65,142.63,142.57,7.0136]
[1724306763980,10.65,142.66,142.58,12.05225125]
[1724306764279,10.65,142.66,142.58,10.65]
[1724306765164,10.65,142.66,142.59,27.013]
[1724306765968,10.65,142.66,142.6,8.41467753]
[1724306768597,16.4531,142.67,142.61,7.012]
[1724306768888,16.4531,142.67,142.62,1.40193942]
[1724306770663,26.7475,142.7,142.63,7.011]
[1724306770866,26.7475,142.7,142.61,85.0]
[1724306771065,26.7475,142.7,142.62,0.12549]
[1724306771267,10.65,142.68,142.62,7.0115]
[1724306771484,10.65,142.68,142.61,72.0119]
[1724306771675,10.65,142.68,142.61,27.0119]
[1724306773696,10.65,142.66,142.61,27.0119]
[1724306773892,10.65,142.66,142.61,20.0]
[1724306774289,10.65,142.66,142.61,27.012]
[1724306776627,10.65,142.66,142.6,24.5433]
[1724306776830,10.65,142.64,142.6,17.5309]
[1724306777219,10.65,142.66,142.61,1.40217806]
[1724306779135,10.65,142.66,142.6,24.5435]
[1724306781411,10.65,142.64,142.6,24.5435]
[1724306782914,10.65,142.64,142.61,1.40214591]
[1724306784120,10.65,142.66,142.61,1.40214591]
[1724306786640,10.65,142.66,142.61,46.40214591]
[1724306795571,7.0083,142.69,142.61,53.41424591]
[1724306795860,10.65,142.67,142.61,53.41424591]
[1724306796030,16.0975,142.7,142.64,7.0103]
[1724306796237,26.7475,142.7,142.65,1.40176324]
[1724306797035,7.0063,142.73,142.65,8.41186324]
[1724306797336,7.0063,142.73,142.66,45.0]
[1724306797337,7.0062,142.73,142.66,45.0]
[1724306797534,10.65,142.71,142.67,1.40158966]
[1724306797774,10.65,142.71,142.66,45.0]
[1724306797951,10.65,142.71,142.65,45.0]
[1724306798643,10.65,142.71,142.64,24.5363]
[1724306798838,0.12549,142.7,142.65,1.40176676]
[1724306799251,0.12549,142.7,142.65,46.40176676]
[1724306799465,10.65,142.71,142.65,46.40176676]
[1724306803055,10.65,142.71,142.65,45.0]
[1724306803470,10.65,142.71,142.66,1.40162208]
[1724306804271,10.65,142.71,142.65,45.0]
[1724306806559,10.65,142.71,142.66,1.40162285]
[1724306806968,10.65,142.71,142.65,52.01]
[1724306807369,10.65,142.71,142.66,1.40162322]
[1724306808177,10.65,142.71,142.65,52.01]
[1724306813783,10.65,142.71,142.66,1.40162424]
[1724306815185,10.65,142.71,142.65,52.01]
[1724306816683,10.65,142.71,142.66,7.0096]
[1724306816988,10.65,142.71,142.67,45.0]
[1724306817161,10.65,142.71,142.68,1.40146819]
[1724306817983,10.65,142.71,142.67,45.0]
[1724306819724,10.65,142.71,142.68,1.40148007]
[1724306820622,7.0063,142.73,142.68,1.40148007]
[1724306820932,10.65,142.72,142.68,1.40148007]
[1724306821802,21.74730848,142.74,142.68,1.40148007]
[1724306821998,15.1219,142.74,142.68,12.05148007]
[1724306822209,11.4838663,142.75,142.69,45.0]
[1724306822405,11.4838663,142.75,142.7,1.40108527]
[1724306822820,11.4838663,142.75,142.7,8.40868527]
[1724306823036,0.8338663,142.75,142.71,52.0071]
[1724306823239,0.8338663,142.75,142.72,1.40089789]
[1724306825893,11.4838663,142.75,142.7,17.5188]
[1724306826134,0.8338663,142.75,142.71,1.4010277]
[1724306826308,0.8338663,142.75,142.71,93.4081277]
[1724306826500,0.8338663,142.75,142.74,7.0057]
[1724306826702,0.8338663,142.75,142.74,73.53173331]
[1724306826909,0.8338663,142.75,142.74,73.65722331]
[1724306827128,0.8338663,142.75,142.74,72.13119]
[1724306827434,0.8338663,142.75,142.74,73.53165857]
[1724306827603,0.8338663,142.75,142.74,84.18165857]
[1724306827797,0.8338663,142.75,142.74,84.30714857]
[1724306828223,0.8338663,142.75,142.74,73.53165857]
[1724306828426,0.8338663,142.75,142.74,84.30714857]
[1724306828723,0.8338663,142.75,142.74,82.78119]
[1724306829126,0.8338663,142.75,142.74,84.18164868]
[1724306829327,0.8338663,142.75,142.74,82.78119]
[1724306829535,0.8338663,142.75,142.74,82.90668]
[1724306830543,0.8338663,142.75,142.74,82.78119]
[1724306830744,0.8338663,142.75,142.74,21.40045157]
[1724306831527,0.8338663,142.75,142.74,20.0]
[1724306831829,0.8338663,142.75,142.74,21.40071734]
[1724306832203,0.8338663,142.75,142.72,17.5159]
[1724306832605,0.8338663,142.75,142.71,7.007]
[1724306832606,0.8338663,142.75,142.73,1.40086312]
[1724306832807,0.8338663,142.75,142.7,24.74616439]
[1724306833121,0.8338663,142.75,142.71,8.40796423]
[1724306833319,0.8338663,142.75,142.72,7.0064]
[1724306833518,0.8338663,142.75,142.73,8.40704663]
[1724306833721,0.8338663,142.75,142.74,1.4006183]
[1724306834251,0.8338663,142.75,142.74,46.5261083]
[1724306835938,0.8338663,142.75,142.74,45.12549]
[1724306836339,0.8338663,142.75,142.74,53.53179123]
[1724306836534,0.8338663,142.75,142.74,73.53179123]
[1724306837134,0.8338663,142.75,142.74,72.13119]
[1724306837930,0.8338663,142.75,142.74,73.53179507]
[1724306839155,0.8338663,142.75,142.74,72.13119]
[1724306839756,0.8338663,142.75,142.74,73.5318005]
[1724306839954,0.8338663,142.75,142.74,66.5261005]
[1724306840151,0.8338663,142.75,142.74,65.0]
[1724306840940,0.8338663,142.75,142.74,20.0]
[1724306841246,0.8338663,142.75,142.74,1.40076403]
[1724306841447,0.8338663,142.75,142.74,1.40078363]
[1724306842736,0.8338663,142.75,142.74,46.40078363]
[1724306842936,0.8338663,142.75,142.74,66.40078363]
[1724306845751,0.8338663,142.75,142.74,65.0]
[1724306846457,0.8338663,142.75,142.71,35.1744]
[1724306846660,0.8338663,142.75,142.72,65.0]
[1724306848751,0.8338663,142.75,142.72,20.0]
[1724306849541,0.8338663,142.75,142.73,1.40098976]
[1724306851166,0.8338663,142.75,142.74,1.4009836]
[1724306852368,0.8338663,142.75,142.73,46.40084352]
[1724306852751,0.8338663,142.75,142.72,27.0066]
[1724306853361,0.8338663,142.75,142.73,45.0]
[1724306857453,0.8338663,142.75,142.72,27.0066]
[1724306859379,0.8338663,142.75,142.72,20.0]
[1724306863759,11.4838663,142.75,142.69,7.0081]
[1724306864066,16.0698,142.74,142.68,24.5293]
[1724306864473,16.0698,142.74,142.68,17.5208]
[1724306864681,16.0698,142.74,142.65,24.535]
[1724306864682,10.77549,142.73,142.65,24.535]
[1724306864893,17.78169,142.73,142.65,24.535]
[1724306865195,10.65,142.71,142.64,17.6605]
[1724306865877,10.65,142.71,142.64,7.0105]
[1724306866395,7.13179,142.73,142.64,17.6605]
[1724306866704,10.65,142.72,142.64,17.6605]
[1724306866884,10.65,142.72,142.65,7.01]
[1724306867271,10.65,142.72,142.66,20.0]
[1724306871972,0.12549,142.73,142.67,1.40147841]
[1724306872171,10.65,142.72,142.66,20.0]
[1724306872384,10.65,142.72,142.65,20.0]
[1724306872587,10.65,142.72,142.66,45.0]
[1724306873177,10.65,142.72,142.65,27.01]
[1724306874102,10.65,142.72,142.66,1.4016038]
[1724306874295,10.65,142.72,142.65,27.01]
[1724306877001,10.65,142.72,142.65,40.0]
[1724306877299,26.7198,142.74,142.66,64.18657328]
[1724306877797,33.7256,142.74,142.66,62.78499]
[1724306878503,33.7256,142.74,142.66,52.0095]
[1724306878700,0.12549,142.73,142.66,52.0095]
[1724306879301,7.13179,142.73,142.65,27.01]
[1724306880504,10.65,142.72,142.65,27.01]
[1724306880688,22.9378,142.71,142.65,27.01]
[1724306881774,22.9378,142.71,142.65,20.0]
[1724306883297,22.9378,142.71,142.66,1.40165865]
[1724306883498,22.9378,142.71,142.66,64.06105865]
[1724306884095,22.9378,142.71,142.67,27.0091]
[1724306884301,22.9378,142.71,142.68,1.40142341]
[1724306884799,16.6115,142.71,142.67,20.0]
[1724306886183,16.6115,142.71,142.67,27.0087]
[1724306886521,16.6115,142.71,142.68,1.40147428]
[1724306888689,16.6115,142.71,142.68,53.41007428]
[1724306889377,16.6115,142.71,142.68,52.0086]
[1724306890310,16.6115,142.71,142.69,1.40135586]
[1724306891703,22.1158,142.74,142.69,8.40945586]
[1724306892222,15.8874,142.74,142.7,7.0076]
[1724306892424,15.8874,142.74,142.71,1.40113667]
[1724306893417,15.8874,142.74,142.7,1.40115291]
[1724306893594,15.8874,142.74,142.71,1.40115399]
[1724306895201,15.8874,142.74,142.71,8.40825399]
[1724306896417,0.8338663,142.75,142.71,8.40825399]
[1724306901062,0.8338663,142.75,142.72,7.0064]
[1724306901341,0.8338663,142.75,142.73,53.40693482]
[1724306901633,0.8338663,142.75,142.74,1.4008159]
[1724306902428,0.8338663,142.75,142.73,45.0]
[1724306902629,0.8338663,142.75,142.72,24.523]
[1724306904245,0.8338663,142.75,142.72,17.5164]
[1724306904429,0.8338663,142.75,142.72,24.523]
[1724306904625,0.8338663,142.75,142.73,8.40711873]
[1724306904831,0.8338663,142.75,142.73,1.40091873]
[1724306905036,0.8338663,142.75,142.72,24.5229]
[1724306908415,0.8338663,142.75,142.73,1.40091665]
[1724306908836,0.8338663,142.75,142.72,24.5229]
[1724306911319,0.8338663,142.75,142.73,8.40701644]
[1724306911633,0.8338663,142.75,142.74,1.40088772]
[1724306912647,0.8338663,142.75,142.72,35.173]
[1724306913431,0.8338663,142.75,142.72,24.523]
[1724306914977,0.8338663,142.75,142.72,17.5164]
[1724306916772,0.8338663,142.75,142.73,1.40101836]
[1724306917074,0.8338663,142.75,142.72,24.523]
[1724306920049,9.9838663,142.78,142.72,24.523]
[1724306925361,9.9838663,142.78,142.73,1.40100149]
[1724306925554,9.9838663,142.78,142.72,24.523]
[1724306926480,9.9838663,142.78,142.72,17.5164]
[1724306926689,0.12549,142.77,142.72,17.5164]
[1724306928777,0.12549,142.77,142.72,18.91751626]
[1724306931387,29.884,142.8,142.72,25.92411626]
[1724306931687,10.77549,142.79,142.72,25.92411626]
[1724306933055,29.884,142.8,142.72,25.92411626]
[1724306933254,10.65,142.79,142.72,25.92411626]
[1724306933986,10.65,142.79,142.72,24.523]
[1724306938901,10.65,142.79,142.73,1.40090899]
[1724306940401,10.65,142.79,142.72,24.523]
[1724306940875,10.65,142.79,142.73,45.0]
[1724306941782,10.65,142.79,142.72,24.523]
[1724306944281,10.65,142.79,142.72,17.5164]
[1724306944481,0.12549,142.78,142.72,17.5164]
[1724306945416,10.65,142.77,142.72,17.5164]
[1724306950622,10.65,142.77,142.71,7.0068]
[1724306950913,10.65,142.75,142.69,17.5197]
[1724306952132,10.65,142.75,142.7,1.40129671]
[1724306953434,16.3076,142.76,142.7,1.40129671]
[1724306954004,16.3076,142.76,142.7,57.05129671]
[1724306954212,16.3076,142.76,142.7,64.05879671]
[1724306956128,22.2779,142.8,142.73,7.006]
[1724306956337,15.8281,142.8,142.74,53.40626285]
[1724306956504,15.8281,142.8,142.74,64.05626285]
[1724306956909,16.9866,142.83,142.75,7.0049]
[1724306957106,16.9866,142.83,142.76,1.40060179]
[1724306958424,16.9866,142.83,142.75,7.0049]
[1724306958425,16.9866,142.83,142.77,1.40060224]
[1724306958811,16.9866,142.83,142.76,45.0]
[1724306959206,16.9866,142.83,142.77,1.40053605]
[1724306960229,16.3314,142.84,142.77,1.40053605]
[1724306960434,16.3314,142.84,142.78,17.6533]
[1724306960727,16.3314,142.84,142.79,1.40028798]
[1724306961030,16.3314,142.84,142.8,1.40030358]
[1724306961414,6.62540848,142.87,142.81,22.4063]
[1724306961617,17.6484,142.89,142.81,23.8066004]
[1724306961812,10.65,142.87,142.81,23.8066004]
[1724306962024,10.65,142.87,142.79,24.5105]
[1724306962212,10.65,142.87,142.8,72.0027]
[1724306965722,10.65,142.87,142.81,8.40198655]
[1724306965921,10.2138,142.87,142.81,8.40198655]
[1724306966109,10.2138,142.87,142.81,1.40008655]
[1724306966736,10.2138,142.87,142.8,72.0027]
[1724306966924,10.2138,142.87,142.8,70.2027]
[1724306967943,10.2138,142.87,142.8,63.2]
[1724306968113,10.2138,142.87,142.8,20.0]
[1724306968534,10.65,142.84,142.8,20.0]
[1724306970143,10.65,142.84,142.8,27.0027]
[1724306970528,10.65,142.84,142.8,20.0]
[1724306975322,10.65,142.84,142.81,1.4002837]
[1724306976344,10.65,142.84,142.8,20.0]
[1724306976744,10.65,142.84,142.81,1.40015358]
[1724306978126,10.65,142.84,142.8,21.4002316]
[1724306980464,10.65,142.85,142.81,7.0022]
[1724306980641,10.65,142.85,142.82,1.40003609]
[1724306982323,10.65,142.85,142.8,27.0026]
[1724306982534,6.9988,142.89,142.8,27.0026]
[1724306982747,10.65,142.86,142.8,27.0026]
[1724306984857,10.65,142.86,142.8,20.0]
[1724306985051,10.65,142.84,142.8,20.0]
[1724306985450,10.65,142.84,142.81,1.40021898]
[1724306986934,7.9573563,142.9,142.81,1.40021898]
[1724306987167,10.65,142.88,142.81,8.40211898]
[1724306987342,7.8318663,142.9,142.81,8.40211898]
[1724306987530,10.65,142.88,142.82,7.0017]
[1724306987729,10.65,142.88,142.83,1.39995061]
[1724306988627,10.65,142.88,142.82,1.3999523]
[1724306989239,10.65,142.86,142.81,7.0021]
[1724306989445,10.65,142.86,142.83,1.39995444]
[1724306992257,10.65,142.86,142.82,1.39998558]
[1724306992960,10.65,142.86,142.83,1.39997734]
[1724306993852,0.8338663,142.9,142.83,7.0012]
[1724306994053,0.8338663,142.9,142.84,1.39998814]
[1724306994259,0.8338663,142.9,142.85,7.0002]
[1724306994444,0.8338663,142.9,142.84,66.39998814]
[1724306994445,0.8338663,142.9,142.86,1.39968955]
[1724306995375,0.8338663,142.9,142.85,1.39969076]
[1724306995542,0.8338663,142.9,142.86,1.39969076]
[1724306995949,10.65,142.89,142.84,20.0]
[1724306996454,10.65,142.89,142.85,1.39983769]
[1724307000173,10.65,142.89,142.84,20.0]
[1724307001359,10.65,142.89,142.85,1.39978357]
[1724307004074,10.65,142.89,142.84,20.0]
[1724307005769,10.65,142.89,142.85,1.39978599]
[1724307007685,10.65,142.89,142.84,20.0]
[1724307007971,10.65,142.89,142.83,20.0]
[1724307008343,10.65,142.89,142.83,27.0013]
[1724307011860,10.65,142.87,142.83,27.0013]
[1724307012380,10.65,142.87,142.83,20.0]
[1724307012543,10.65,142.87,142.82,20.0]
[1724307013680,10.65,142.87,142.83,1.4000287]
[1724307015254,10.65,142.87,142.82,20.0]
[1724307016766,10.65,142.87,142.83,1.3999153]
[1724307018706,10.65,142.87,142.82,20.0]
[1724307019888,10.65,142.87,142.83,1.39990404]
[1724307021374,10.65,142.89,142.83,1.39990404]
[1724307022500,11.4838663,142.9,142.84,7.0007]
[1724307022697,11.4838663,142.9,142.85,1.39970006]
[1724307022881,11.4838663,142.9,142.86,1.39970182]
[1724307023998,11.4838663,142.9,142.85,1.39972771]
[1724307025172,0.8338663,142.9,142.86,8.3995329]
[1724307025673,0.8338663,142.9,142.87,72.12479]
[1724307025978,0.8338663,142.9,142.88,1.39938725]
[1724307026391,0.8338663,142.9,142.87,72.12479]
[1724307026610,0.8338663,142.9,142.87,20.0]
[1724307026974,11.4838663,142.9,142.87,21.39958442]
[1724307029013,0.8338663,142.9,142.87,21.39958442]
[1724307032329,11.4838663,142.9,142.87,21.39958442]
[1724307032632,11.4838663,142.9,142.88,1.39958487]
[1724307033810,11.4838663,142.9,142.87,1.39958517]
[1724307036125,0.8338663,142.9,142.87,1.39958517]
[1724307037201,0.8338663,142.9,142.87,53.39868517]
[1724307037507,0.8338663,142.9,142.87,45.0]
[1724307038004,0.8338663,142.9,142.87,51.9993]
[1724307038592,0.8338663,142.9,142.87,45.0]
[1724307039093,0.8338663,142.9,142.86,26.9996]
[1724307044717,0.8338663,142.9,142.86,20.0]
[1724307047922,10.65,142.89,142.83,7.001]
[1724307048124,10.65,142.89,142.84,20.0]
[1724307049598,0.8338663,142.9,142.85,1.525332]
[1724307049801,0.8338663,142.9,142.86,1.39959493]